Cogmind - Beta 13 @@@ ROGUE MODE // 2024.06.03 @ 12:46:49 Player: Dendrocnid Result: Destroyed by VJ-RK0(R) with Subdweller Beam Cannon Performance ------------- Evolutions (0) 0 Regions Visited (2) 400 Robots Destroyed (16) 80 Value Destroyed (422) 422 Prototype IDs (0) 0 Alien Tech Used (0) 0 Bonus (0) 0 TOTAL SCORE: 902 Bonus ------- None Cogmind --------- Core Integrity 0/250 Matter 283/300 Energy 111/150 System Corruption 1% Temperature Cool (9) Movement Treading (160) Location -10/Subcaves Parts ------- > --- POWER (1) -------- Light Angular Momentum Engine > --- PROPULSION (2) --- Light Treads Light Treads > --- UTILITY (2) ------ (None) > --- WEAPON (2) ------- Bore Cannon > --- INVENTORY (5) ---- Medium Storage Unit Subdweller Optics Seismic Detector Peak State ------------ > --- POWER ------------ Light Angular Momentum Engine > --- PROPULSION ------- Light Treads Light Treads > --- UTILITY ---------- (None) > --- WEAPON ----------- Bore Cannon > --- INVENTORY -------- Medium Storage Unit Subdweller Optics Seismic Detector [Rating: 12] Favorites ----------- Power Ion Engine Engine Ion Engine Power Core Light Nuclear Core Propulsion Wheel Treads Light Treads Wheel Wheel Hover Unit Hover Unit Utility Improved Terrain Scanner Device Improved Terrain Scanner Storage Medium Storage Unit Protection Scrap Shield Weapon Light Assault Rifle Energy Gun EM Pulse Gun Ballistic Gun Light Assault Rifle Ballistic Cannon Bore Cannon Special Weapon Mining Laser Special Melee Weapon Datajack Build | -11 -10 -10 ------- Run | Yrd Mat Sub Slots Evolved . | . . . Power . | . . . Propulsion . | . . . Utility . | . . . Weapon . | . . . Parts Attached 22 | 7 8 7 Power 3 | 1 . 2 Engine 2 | 1 . 1 Core 1 | . . 1 Reactor . | . . . Propulsion 7 | 2 3 2 Treads 2 | . . 2 Leg . | . . . Wheel 4 | 2 2 . Hover 1 | . 1 . Flight . | . . . Utility 4 | 2 1 1 Device 1 | 1 . . Storage 2 | 1 1 . Processor . | . . . Hackware . | . . . Protection 1 | . . 1 Artifact . | . . . Weapon 8 | 2 4 2 Energy Gun 2 | . 1 1 Energy Cannon . | . . . Ballistic Gun 3 | 2 1 . Ballistic Cannon 1 | . . 1 Launcher . | . . . Special Weapon 1 | . 1 . Impact Weapon . | . . . Slashing Weapon . | . . . Piercing Weapon . | . . . Special Melee Weapon 1 | . 1 . Unidentified Prototypes . | . . . Parts Lost 8 | . 2 6 Power 2 | . 1 1 Propulsion 2 | . . 2 Utility 1 | . . 1 Weapon 3 | . 1 2 Highest Loss Streak 6 | . 1 6 To Critical Strikes . | . . . Average Slot Usage (%) 85 | . 88 77 Engine 8 | . 10 . Core 2 | . . 10 Treads 1 | . . 4 Wheel 15 | . 13 22 Hover 5 | . 7 . Device 11 | . 14 . Storage 11 | . 14 . Protection 2 | . . 10 Energy Gun 4 | . 1 12 Ballistic Gun 18 | . 20 11 Special Weapon 2 | . 3 . Special Melee Weapon 2 | . 2 . Naked Turns . | . . . Heaviest Build 26 | 14 19 26 Greatest Support 40 | 20 20 40 Greatest Overweight (x) 3 | . 3 2 Average Overweight (x) . | . . . Largest Inventory Capacity 10 | 8 10 10 Average Capacity 8 | 7 9 5 Most Carried 8 | 7 8 8 Average Carried 6 | 4 7 4 Final Capacity 10 | 8 10 5 Final Carried 8 | 7 8 3 Class Distribution -------------------- 94% | Mutant 5% | Scavenger-Mutant Dominant Class ---------------- Mutant | -10/Materials Mutant | -10/Subcaves Resources | -11 -10 -10 ----------- Run | Yrd Mat Sub Matter Collected 562 | 310 126 126 Remotely . | . . . Salvage Created 606 | 102 365 139 Parts 36 | 4 22 10 Haulers Intercepted . | . . . Recyclers Shooed . | . . . Parts Field Recycled . | . . . Retrieved Matter . | . . . Parts Self-Destructed . | . . . Prevented . | . . . Kills | -11 -10 -10 ------- Run | Yrd Mat Sub Combat Hostiles Destroyed 10 | . 7 3 Guns 8 | . 6 2 Cannons 1 | . . 1 AOE 1 | . 1 . Classes Destroyed 6 | 2 3 1 Worker 2 | . 2 . Tunneler 2 | 1 1 . Recycler 1 | 1 . . Watcher 1 | . 1 . Grunt 7 | . 7 . Subdweller 3 | . . 3 Best Kill Streak 6 | 1 6 1 Combat Bots Only 4 | . 4 1 Max Kills in Single Turn 3 | 1 3 1 Gunslinging 1 | . 1 . Exploded 1 | . 1 . Melee . | . . . Uniques/NPCs Destroyed . | . . . Combat | -11 -10 -10 -------- Run | Yrd Mat Sub Hostile Shots Fired 84 | . 37 47 Missed 25 | . 12 13 Damage Taken 1199 | . 375 824 Core 263 | . 93 170 Absorbed by Shields . | . . . Core Remaining (%) 100 | 100 . . Volleys Fired 59 | 10 30 19 Largest 2 | 2 2 2 Hottest 100 | 40 100 97 Shots Fired 104 | 20 55 29 Gun 91 | 20 50 21 Cannon 8 | . . 8 Launcher . | . . . Special 5 | . 5 . Kinetic 78 | 20 39 19 Thermal 5 | . 5 . Explosive . | . . . Electromagnetic 21 | . 11 10 Robot Hit Streak 12 | 3 8 12 Robot Miss Streak 4 | 2 4 2 Penetration Max . | . . . Secondary Targets 4 | . 2 2 Max Gunslinging Chain 1 | . 1 1 Shots Hit Robots 65 | 11 33 21 Core Hits 27 | 3 19 5 Critical Kills 1 | . 1 . Critical Parts Destroyed . | . . . Critical Strikes 6 | . 2 4 Destroy 5 | . 1 4 Corrupt 1 | . 1 . Melee Attacks 1 | . 1 . Impact . | . . . Slashing . | . . . Piercing . | . . . Sneak Attacks 1 | . 1 . Combat Hostiles . | . . . Follow-up Attacks . | . . . Damage Inflicted 832 | 119 466 247 Guns 551 | 119 318 114 Cannons 133 | . . 133 Explosions 148 | . 148 . Melee . | . . . Ramming . | . . . Kinetic 537 | 119 237 181 Thermal 148 | . 148 . Explosive . | . . . Electromagnetic 147 | . 81 66 Impact . | . . . Slashing . | . . . Piercing . | . . . Highest Corruption 1 | . 1 1 Average Corruption 1 | . 1 1 Corruption Purged . | . . . Corruption Blocked . | . . . Effects 7 | . 5 2 Message Errors 1 | . 1 . Matter Fused 2 | . 1 1 Heat Flow Errors 1 | . . 1 Energy Discharges 1 | . 1 . Data Loss (minor) 1 | . 1 . Data Loss (major) 1 | . 1 . Overload Shots . | . . . Overflow Damage . | . . . Projectiles . | . . . Explosions . | . . . Melee . | . . . Knockbacks 2 | . . 2 Impact . | . . . Kinetic 2 | . . 2 Secondary . | . . . Self-Inflicted Damage 27 | . 27 . Shots 1 | . 1 . Rammed . | . . . Targets Rammed . | . . . Kicked . | . . . Crushed . | . . . Highest Temperature 385 | . 83 385 Average Temperature 75 | . 23 168 Received Heat Transfer 893 | . 195 698 Siege Activations . | . . . Robots Corrupted . | . . . Combat Hostiles . | . . . Parts Fried . | . . . Impact Corruptions . | . . . Robots Melted . | . . . Combat Hostiles . | . . . Parts Melted . | . . . Heat Transferred 150 | . 150 . Parts Sabotaged . | . . . Parts Stolen . | . . . Parts Stripped . | . . . Power Chain Reactions 1 | . 1 . Alert | -11 -10 -10 ------- Run | Yrd Mat Sub Peak Influence 119 | 10 119 . Initial 6 | . 6 . Average 54 | 3 64 . Maximum Alert Level . | . . . Low Security (%) 100 | 100 100 . Level 1 . | . . . Level 2 . | . . . Level 3 . | . . . Level 4 . | . . . Level 5 . | . . . High Security . | . . . Max Security . | . . . Squads Dispatched 2 | . 2 . Investigation 1 | . 1 . Extermination . | . . . Reinforcement 1 | . 1 . Assault . | . . . Garrison . | . . . Intercept . | . . . Searches Triggered . | . . . Construction Impeded . | . . . Haulers Reinforced . | . . . Active Scanning Responses . | . . . Cargo Convoy Interrupts . | . . . Stealth | -11 -10 -10 --------- Run | Yrd Mat Sub Distress Signals . | . . . Communications Jammed . | . . . Distress Signals . | . . . Times Spotted 18 | . 10 8 Peak Tracking Total 7 | . 4 7 Tactical Retreats . | . . . Traps | -11 -10 -10 ------- Run | Yrd Mat Sub Traps Triggered 3 | . 2 1 Indirectly . | . . . Trap Hack Attempts 15 | . 15 . Triggered . | . . . Disarmed . | . . . Reprogrammed 1 | . 1 . Reused 1 | . 1 . Traps Extracted . | . . . Installed . | . . . Triggered 1 | . 1 . Machines | -11 -10 -10 ---------- Run | Yrd Mat Sub Machines Disabled . | . . . Max in Single Turn . | . . . Machines Repaired . | . . . Machines Dismantled . | . . . Machines Sabotaged . | . . . Overloaded Fab Kills . | . . . Hacking | -11 -10 -10 --------- Run | Yrd Mat Sub Machines Accessed 2 | . 2 . Terminals 2 | . 2 . Fabricators . | . . . Repair Stations . | . . . Recycling Units . | . . . Scanalyzers . | . . . Garrison Access . | . . . Total Hacks 3 | . 3 . Successful . | . . . Failed 3 | . 3 . Catastrophic 1 | . 1 . Database Lockouts . | . . . Manual 3 | . 3 . Terminals 3 | . 3 . Fabricators . | . . . Repair Stations . | . . . Recycling Units . | . . . Scanalyzers . | . . . Garrison Access . | . . . Terminal Hacks . | . . . Fabricator Hacks . | . . . Repair Station Hacks . | . . . Recycling Unit Hacks . | . . . Scanalyzer . | . . . Garrison Access Hacks . | . . . Unauthorized Hacks . | . . . Terminals . | . . . Fabricators . | . . . Repair Stations . | . . . Recycling Units . | . . . Scanalyzers . | . . . Garrison Access . | . . . Data Cores Recovered . | . . . Used . | . . . Hacking Detections 2 | . 2 . Full Trace Events . | . . . Feedback Events . | . . . Feedback Blocked . | . . . Robot Schematics Acquired . | . . . Robots Built . | . . . Authchips . | . . . Time . | . . . Total Robot Build Rating . | . . . Part Schematics Acquired . | . . . Parts Built . | . . . Authchips . | . . . Time . | . . . Total Part Build Rating . | . . . Parts Repaired . | . . . Time . | . . . Parts Recycled . | . . . Recycled Matter . | . . . Retrieved Matter . | . . . Retrieved Components . | . . . Parts Scanalyzed . | . . . Part Schematics Acquired . | . . . Parts Damaged . | . . . Bothacking | -11 -10 -10 ------------ Run | Yrd Mat Sub Used RIF Installer . | . . . Robots Hacked . | . . . Non-combat . | . . . Combat . | . . . Robot Hacks Applied . | . . . Relay Couplers Released . | . . . Fabnet Peak Effective % . | . . . Robots Rewired . | . . . Allies Hacked . | . . . Hacks Repelled . | . . . Allies | -11 -10 -10 -------- Run | Yrd Mat Sub Total Allies . | . . . Largest Group . | . . . Highest-Rated Group . | . . . Highest-Rated Ally . | . . . Total Orders . | . . . Ally Attacks . | . . . Total Damage . | . . . Kills . | . . . Allies Corrupted . | . . . Allies Melted . | . . . Intel | -11 -10 -10 ------- Run | Yrd Mat Sub Robot Analysis Total . | . . . Derelict Logs Recovered 2 | . . 2 Drone Launches . | . . . Drone Recoveries . | . . . Exploration | -11 -10 -10 ------------- Run | Yrd Mat Sub Turns Passed 913 | 110 619 184 Spaces Moved 582 | 81 379 122 Core 1 | 1 . . Treads 6 | . . 6 Legs . | . . . Wheels 452 | 80 256 116 Hover 123 | . 123 . Flight . | . . . Fastest Speed 50 | 50 80 80 Average Speed 106 | 79 115 97 Slowest Speed 240 | 80 240 160 Overloaded Moves . | . . . Propulsion Burnouts . | . . . Robots Hopped . | . . . Cave-ins Triggered . | . . . Exploration Rate (%) 19 | 4 45 9 Regions Visited 2 Branch Regions 1 Pre-discovered Areas 1 | . . 1 Known Exits Taken . | . . . Unknown Exits Taken 2 | 1 1 . Scrap Searched . | . . . Spaces Dug . | . . . Terrain Destroyed 3 | . 3 . Melee . | . . . Projectile . | . . . AOE 3 | . 3 . Terrain Rammed . | . . . Walls Destroyed . | . . . Machines Disabled . | . . . Actions | -11 -10 -10 --------- Run | Yrd Mat Sub Total 762 | 104 498 160 Wait 62 | . 56 6 Move 580 | 80 378 122 Hop . | . . . Pick Up 12 | 7 4 1 Fast Attach 13 | 7 3 3 Attach 4 | . 1 3 Detach . | . . . Swap 5 | . 4 1 Drop 11 | . 6 5 Fire 59 | 10 30 19 Melee 1 | . 1 . Ram . | . . . Kick . | . . . Crush . | . . . Escape Stasis . | . . . Rewire . | . . . Trap 15 | . 15 . Miscellaneous . | . . . Route ------- -11/Scrapyard -10/Materials (discovered 3 exits: [*Mat] / [*Min] / [*Sub]) -10/Subcaves History --------- Turn | Location | Event 20 | -11/Scrapyard | Discovered new exit (range 15) 111 | -11/Scrapyard | Entered Materials 212 | -10/Materials | Discovered new exit (range 6) 302 | -10/Materials | Build established: Mutant 450 | -10/Materials | Discovered new exit (range 8) 460 | -10/Materials | Discovered new exit (range 11) 730 | -10/Materials | Entered Subcaves 734 | -10/Subcaves | Learned location of Mines (-10) 767 | -10/Subcaves | A swath of the cavern ceiling suddenly collapsed 775 | -10/Subcaves | Shifting Twisted Machinery released Sub. Optics 778 | -10/Subcaves | Shifting Twisted Machinery released Mak. Light Armor Plating 832 | -10/Subcaves | Ambushed by swarm of Subdwellers 882 | -10/Subcaves | Core integrity fell below 50% 891 | -10/Subcaves | Lost 4 allies 912 | -10/Subcaves | Core integrity fell below 20% 914 | -10/Subcaves | Destroyed by VJ-RK0(R) with Subdweller Beam Cannon Last Messages --------------- 00899_ UI-YQZ(R) destroyed. 00900_ Acquired 7 matter. 00902_ G9-QZT(R) affixes Scrap Shield Fragment to Scrap Shield. 00903_ G9-QZT(R) suffers critical hit (Destroy). 00904_ Acquired 7 matter. 00904_ Subatomizers dissect the Sub. Optics. 00906_ Acquired 7 matter. 00906_ US-CA5(R) affixes Scrap Shield Fragment to Scrap Shield. 00908_ Acquired 7 matter. 00908_ G9-QZT(R) affixes Scrap Shield Fragment to Scrap Shield. 00911_ VJ-RK0(R) affixes Scrap Shield Fragment to Scrap Shield. 00912_ Lgt. Nuclear Core destroyed. 00912_ Acquired Lgt. Angular Momentum Engine. 00914_ HV Slug penetrates G9-QZT(R). 00914_ G9-QZT(R) suffers critical hit (Destroy). 00914_ G9-QZT(R) knocked back. Map ----- +----------------------------------------------------+ | ???????????????????????????????????? ? | | ?????????????????????? ?????????????# #? | | ???????????????????????????????????? ## | | ???????????????????????????????????## # | | ?????????????????? ?????????????## ## | | ?????????????????? ???????# ???##!! # | | ?????????????????? ??#### ?###* / | | ?????????????????? #??# # ## | | | ??????????????????# #??? ## ## | | ?????????????????## ##?? ?# ### | | ???????????????### #?## ?## ## # | | ??????????????## #?? ### | | ??????????????# #?## ## | | ??????????????# #?# ### # | | ??????????????# #?# ## #### | | ?????????????## #?? ### #??? | | ???########## # %! ##### ## ##?? | | ??##""<< "" ## # # # #### #?# | | ??# ""